fUSD/lending_fUSD_20250403
["ID","MTS","AMOUNT","RATE_DAILY","PERIOD"]
[357085850,1743702827695,-894.42,0.00053,120]
[357085851,1743702827723,-433.89,0.00053,120]
[357085852,1743702827752,-15735.68833625,0.00053,120]
[357085853,1743702827783,-845000.0,0.00053,120]
[357085854,1743702827816,-154.12,0.000531,51]
[357085855,1743702827848,-154.12,0.000531,51]
[357085856,1743702827876,-1570.339496,0.0005315,120]
[357085857,1743702827904,-1746.393489,0.0005315,120]
[357085858,1743702827935,-500.0,0.0005315,120]
[357085859,1743702827965,-602.89,0.0005315,120]
[357085860,1743702827993,-500.0,0.0005315,120]
[357085861,1743702828020,-254.16738945,0.0005315,120]
[357085862,1743702828049,-985.24,0.0005315,120]
[357085863,1743702828078,-500.0,0.0005315,120]
[357085864,1743702828105,-1580.79,0.0005315,120]
[357085865,1743702828361,-2569.15,0.0005315,120]
[357085866,1743702828399,-1739.7,0.0005315,120]
[357085867,1743702828429,-1687.07,0.0005315,120]
[357085868,1743702828459,-2265.06,0.0005315,120]
[357085869,1743702828490,-1685.91,0.0005315,120]
[357085870,1743702828520,-1903.06,0.0005315,120]
[357085871,1743702828551,-2009.82,0.0005315,120]
[357085872,1743702828581,-500.0,0.0005315,120]
[357085873,1743702828609,-2140.52,0.0005315,120]
[357085874,1743702828638,-771.9,0.0005315,120]
[357085875,1743702828667,-150.0,0.0005315,120]
[357085876,1743702828696,-1568.95,0.0005315,120]
[357085877,1743702828724,-500.0,0.0005315,120]
[357085878,1743702828753,-500.0,0.0005315,120]
[357085879,1743702828781,-998.19,0.0005315,120]
[357085880,1743702828810,-1519.77,0.0005315,120]
[357085881,1743702828838,-1817.99,0.0005315,120]
[357085882,1743702828866,-1674.65,0.0005315,120]
[357085883,1743702828895,-1554.9,0.0005315,120]
[357085884,1743702828926,-500.0,0.0005315,120]
[357085885,1743702828956,-1415.89,0.0005315,120]
[357085886,1743702828985,-463.26240573,0.0005315,120]
[357085887,1743702829017,-1535.52,0.0005315,120]
[357085888,1743702829048,-2083.3,0.0005315,120]
[357085889,1743702829077,-2101.8,0.0005315,120]
[357085890,1743702829107,-1912.76,0.0005315,120]
[357085891,1743702829137,-1917.44,0.0005315,120]
[357085892,1743702829166,-505.64,0.0005315,120]
[357085893,1743702829195,-1848.74,0.0005315,120]
[357085894,1743702829224,-1939.65,0.0005315,120]
[357085895,1743702829254,-500.0,0.0005315,120]
[357085896,1743702829285,-2090.69,0.0005315,120]
[357085897,1743702829315,-1838.99,0.0005315,120]
[357085898,1743702829344,-2110.49,0.0005315,120]
[357085899,1743702829377,-778.23,0.0005315,120]
[357085900,1743702829408,-749.23,0.0005315,120]
[357085901,1743702829439,-500.0,0.0005315,120]
[357085902,1743702829473,-500.0,0.0005315,120]
[357085903,1743702829505,-574.96,0.0005315,120]
[357085904,1743702829537,-1992.38,0.0005315,120]
[357085905,1743702829570,-795.48,0.0005315,120]
[357085906,1743702829601,-500.0,0.0005315,120]
[357085907,1743702829630,-1760.21,0.0005315,120]
[357085908,1743702829660,-2980.91,0.0005315,120]
[357085909,1743702829687,-1579.38,0.0005315,120]
[357085910,1743702829716,-1116.73,0.0005315,120]
[357085911,1743702829746,-1693.21,0.0005315,120]
[357085912,1743702829775,-500.0,0.0005315,120]
[357085913,1743702829804,-1211.63,0.0005315,120]
[357085914,1743702829832,-1853.76,0.0005315,120]
[357085915,1743702829860,-1747.91,0.0005315,120]
[357085916,1743702829891,-1699.65,0.0005315,120]
[357085917,1743702829921,-500.0,0.0005315,120]
[357085918,1743702829952,-1666.14,0.0005315,120]
[357085919,1743702829980,-919.01,0.0005315,120]
[357085920,1743702830011,-1084.23,0.0005315,120]
[357085921,1743702830040,-1746.34,0.0005315,120]
[357085922,1743702830070,-2182.37,0.0005315,120]
[357085923,1743702830098,-1996.93,0.0005315,120]
[357085924,1743702830126,-616.61,0.0005315,120]
[357085925,1743702830155,-1435.37,0.0005315,120]
[357085926,1743702830183,-699.18,0.0005315,120]
[357085927,1743702830212,-500.0,0.0005315,120]
[357085928,1743702830242,-978.7,0.0005315,120]
[357085929,1743702830272,-926.73,0.0005315,120]
[357085930,1743702830305,-1443.02,0.0005315,120]
[357085931,1743702830336,-1089.89,0.0005315,120]
[357085932,1743702830366,-1222.53,0.0005315,120]
[357085933,1743702830396,-500.0,0.00053173,120]
[357085934,1743702830427,-164.32991849,0.00053324,52]
[357085935,1743702830457,-163.17612889,0.00053424,120]
[357085936,1743702830488,-1570.339496,0.00053424,120]
[357085937,1743702830563,-1746.393489,0.00053424,120]
[357085938,1743702830591,-500.0,0.00053424,120]
[357085939,1743702830618,-602.89,0.00053424,120]
[357085940,1743702830645,-500.0,0.00053424,120]
[357085941,1743702830671,-985.24,0.00053424,120]
[357085942,1743702830698,-500.0,0.00053424,120]
[357085943,1743702830724,-1580.79,0.00053424,120]
[357085944,1743702830751,-2569.15,0.00053424,120]
[357085945,1743702830777,-1739.7,0.00053424,120]
[357085946,1743702830805,-1687.07,0.00053424,120]
[357085947,1743702830832,-2265.06,0.00053424,120]
[357085948,1743702830859,-1685.91,0.00053424,120]
[357085949,1743702830885,-1903.06,0.00053424,120]
[357085950,1743702830915,-2009.82,0.00053424,120]
[357085951,1743702830941,-500.0,0.00053424,120]
[357085952,1743702830969,-2140.52,0.00053424,120]
[357085953,1743702830996,-771.9,0.00053424,120]
[357085954,1743702831024,-150.0,0.00053424,120]
[357085955,1743702831052,-1568.95,0.00053424,120]
[357085956,1743702831079,-500.0,0.00053424,120]
[357085957,1743702831106,-500.0,0.00053424,120]
[357085958,1743702831133,-998.19,0.00053424,120]
[357085959,1743702831163,-1519.77,0.00053424,120]
[357085960,1743702831190,-1817.99,0.00053424,120]
[357085961,1743702831218,-1674.65,0.00053424,120]
[357085962,1743702831245,-1554.9,0.00053424,120]
[357085963,1743702831273,-500.0,0.00053424,120]
[357085964,1743702831302,-1415.89,0.00053424,120]
[357085965,1743702831331,-1535.52,0.00053424,120]
[357085966,1743702831362,-2083.3,0.00053424,120]
[357085967,1743702831390,-2101.8,0.00053424,120]
[357085968,1743702831419,-1912.76,0.00053424,120]
[357085969,1743702831448,-1917.44,0.00053424,120]
[357085970,1743702831476,-505.64,0.00053424,120]
[357085971,1743702831505,-1848.74,0.00053424,120]
[357085972,1743702831533,-1939.65,0.00053424,120]
[357085973,1743702831562,-500.0,0.00053424,120]
[357085974,1743702831591,-2090.69,0.00053424,120]
[357085975,1743702831619,-1838.99,0.00053424,120]
[357085976,1743702831646,-2110.49,0.00053424,120]
[357085977,1743702831676,-778.23,0.00053424,120]
[357085978,1743702831705,-749.23,0.00053424,120]
[357085979,1743702831734,-500.0,0.00053424,120]
[357085980,1743702831763,-500.0,0.00053424,120]
[357085981,1743702831794,-574.96,0.00053424,120]
[357085982,1743702831822,-1992.38,0.00053424,120]
[357085983,1743702831852,-795.48,0.00053424,120]
[357085984,1743702831882,-534.87818976,0.00053424,120]
[357085985,1743702831914,-1760.21,0.00053424,120]
[357085986,1743702831944,-2980.91,0.00053424,120]
[357085987,1743702831974,-1579.38,0.00053424,120]
[357085988,1743702832002,-1116.73,0.00053424,120]
[357085989,1743702832031,-1693.21,0.00053424,120]
[357085990,1743702832059,-500.0,0.00053424,120]
[357085991,1743702832090,-1211.63,0.00053424,120]
[357085992,1743702832119,-1853.76,0.00053424,120]
[357085993,1743702832147,-1747.91,0.00053424,120]
[357085994,1743702832176,-1699.65,0.00053424,120]
[357085995,1743702832205,-500.0,0.00053424,120]
[357085996,1743702832233,-1666.14,0.00053424,120]
[357085997,1743702832262,-919.01,0.00053424,120]
[357085998,1743702832292,-1084.23,0.00053424,120]
[357085999,1743702832322,-1746.34,0.00053424,120]
[357086000,1743702832352,-2182.37,0.00053424,120]
[357086001,1743702832382,-1996.93,0.00053424,120]
[357086002,1743702832414,-616.61,0.00053424,120]
[357086003,1743702832443,-1435.37,0.00053424,120]
[357086004,1743702832474,-699.18,0.00053424,120]
[357086005,1743702832502,-500.0,0.00053424,120]
[357086006,1743702832533,-978.7,0.00053424,120]
[357086007,1743702832563,-1443.02,0.00053424,120]
[357086008,1743702832594,-926.73,0.00053424,120]
[357086009,1743702832624,-1089.89,0.00053424,120]
[357086010,1743702832652,-1222.53,0.00053424,120]
[357086011,1743702832680,-154.21,0.00053425,120]
[357086012,1743702832709,-500.0,0.00053447,120]
[357086013,1743702832738,-4000.0,0.000535,120]
[357086014,1743702832769,-136325.33,0.000535,120]
[357086015,1743702832798,-1570.339496,0.00053698,120]
[357086016,1743702832827,-1746.393489,0.00053698,120]
[357086017,1743702832855,-500.0,0.00053698,120]
[357086018,1743702832883,-602.89,0.00053698,120]
[357086019,1743702832913,-500.0,0.00053698,120]
[357086020,1743702832941,-985.24,0.00053698,120]
[357086021,1743702832970,-500.0,0.00053698,120]
[357086022,1743702833000,-1580.79,0.00053698,120]
[357086023,1743702833029,-2569.15,0.00053698,120]
[357086024,1743702833057,-1739.7,0.00053698,120]
[357086025,1743702833085,-1687.07,0.00053698,120]
[357086026,1743702833114,-2265.06,0.00053698,120]
[357086027,1743702833142,-1685.91,0.00053698,120]
[357086028,1743702833171,-1903.06,0.00053698,120]
[357086029,1743702833199,-2009.82,0.00053698,120]
[357086030,1743702833228,-500.0,0.00053698,120]
[357086031,1743702833255,-2140.52,0.00053698,120]
[357086032,1743702833284,-771.9,0.00053698,120]
[357086033,1743702833312,-150.0,0.00053698,120]
[357086034,1743702833341,-1568.95,0.00053698,120]
[357086035,1743702833369,-500.0,0.00053698,120]
[357086036,1743702833396,-500.0,0.00053698,120]
[357086037,1743702833424,-998.19,0.00053698,120]
[357086038,1743702833453,-1519.77,0.00053698,120]
[357086039,1743702833483,-1817.99,0.00053698,120]
[357086040,1743702833513,-1674.65,0.00053698,120]
[357086041,1743702833542,-1554.9,0.00053698,120]
[357086042,1743702833680,-500.0,0.00053698,120]
[357086043,1743702833710,-1415.89,0.00053698,120]
[357086044,1743702833739,-1535.52,0.00053698,120]
[357086045,1743702833767,-2083.3,0.00053698,120]
[357086046,1743702833795,-2101.8,0.00053698,120]
[357086047,1743702833825,-1912.76,0.00053698,120]
[357086048,1743702833854,-1917.44,0.00053698,120]
[357086049,1743702833884,-505.64,0.00053698,120]
[357086050,1743702833916,-1848.74,0.00053698,120]
[357086051,1743702833947,-1939.65,0.00053698,120]
[357086052,1743702833979,-500.0,0.00053698,120]
[357086053,1743702834018,-2090.69,0.00053698,120]
[357086054,1743702834050,-1838.99,0.00053698,120]
[357086055,1743702834082,-2110.49,0.00053698,120]
[357086056,1743702834116,-778.23,0.00053698,120]
[357086057,1743702834147,-749.23,0.00053698,120]
[357086058,1743702834194,-240.88542739,0.00053698,120]
[357086059,1743702834233,-500.0,0.00053698,120]
[357086060,1743702834267,-574.96,0.00053698,120]
[357086061,1743702834301,-1992.38,0.00053698,120]
[357086062,1743702834332,-795.48,0.00053698,120]
[357086063,1743702834364,-1760.21,0.00053698,120]
[357086064,1743702834394,-2980.91,0.00053698,120]
[357086065,1743702834424,-1579.38,0.00053698,120]
[357086066,1743702834453,-1116.73,0.00053698,120]
[357086067,1743702834484,-1693.21,0.00053698,120]
[357086068,1743702834514,-253.21924711,0.00053698,120]
[357086069,1743702834546,-1211.63,0.00053698,120]
[357086070,1743702834575,-1853.76,0.00053698,120]
[357086071,1743702834603,-1747.91,0.00053698,120]
[357086072,1743702834633,-1699.65,0.00053698,120]
[357086073,1743702834663,-500.0,0.00053698,120]
[357086074,1743702834692,-1666.14,0.00053698,120]
[357086075,1743702834722,-919.01,0.00053698,120]
[357086076,1743702834751,-1084.23,0.00053698,120]
[357086077,1743702834781,-1746.34,0.00053698,120]
[357086078,1743702834811,-2182.37,0.00053698,120]
[357086079,1743702834840,-1996.93,0.00053698,120]
[357086080,1743702834870,-616.61,0.00053698,120]
[357086081,1743702834900,-1435.37,0.00053698,120]
[357086082,1743702834932,-699.18,0.00053698,120]
[357086083,1743702834962,-500.0,0.00053698,120]
[357086084,1743702834992,-978.7,0.00053698,120]
[357086085,1743702835022,-1443.02,0.00053698,120]
[357086086,1743702835052,-926.73,0.00053698,120]
[357086087,1743702835083,-1089.89,0.00053698,120]
[357086088,1743702835111,-1222.53,0.00053698,120]
[357086089,1743702835140,-876.08507629,0.00053709,60]
[357086090,1743702835170,-500.0,0.00053721,120]
[357086091,1743702835198,-3025.37851311,0.000539,120]
[357086092,1743702835230,-1570.339496,0.00053972,120]
[357086093,1743702835259,-1746.393489,0.00053972,120]
[357086094,1743702835290,-500.0,0.00053972,120]
[357086095,1743702835319,-602.89,0.00053972,120]
[357086096,1743702835347,-500.0,0.00053972,120]
[357086097,1743702835376,-985.24,0.00053972,120]
[357086098,1743702835405,-500.0,0.00053972,120]
[357086099,1743702835435,-1580.79,0.00053972,120]
[357086100,1743702835464,-2569.15,0.00053972,120]
[357086101,1743702835494,-1739.7,0.00053972,120]
[357086102,1743702835524,-1687.07,0.00053972,120]
[357086103,1743702835555,-2265.06,0.00053972,120]
[357086104,1743702835584,-1685.91,0.00053972,120]
[357086105,1743702835613,-1903.06,0.00053972,120]
[357086106,1743702835643,-2009.82,0.00053972,120]
[357086107,1743702835672,-500.0,0.00053972,120]
[357086108,1743702835702,-2140.52,0.00053972,120]
[357086109,1743702835732,-771.9,0.00053972,120]
[357086110,1743702835761,-150.0,0.00053972,120]
[357086111,1743702835790,-1568.95,0.00053972,120]
[357086112,1743702835818,-500.0,0.00053972,120]
[357086113,1743702835847,-500.0,0.00053972,120]
[357086114,1743702835875,-998.19,0.00053972,120]
[357086115,1743702835905,-1519.77,0.00053972,120]
[357086116,1743702835935,-1817.99,0.00053972,120]
[357086117,1743702835964,-1674.65,0.00053972,120]
[357086118,1743702835994,-1554.9,0.00053972,120]
[357086119,1743702836022,-500.0,0.00053972,120]
[357086120,1743702836051,-1415.89,0.00053972,120]
[357086121,1743702836080,-1535.52,0.00053972,120]
[357086122,1743702836109,-2083.3,0.00053972,120]
[357086123,1743702836136,-2101.8,0.00053972,120]
[357086124,1743702836165,-1912.76,0.00053972,120]
[357086125,1743702836193,-1917.44,0.00053972,120]
[357086126,1743702836221,-505.64,0.00053972,120]
[357086127,1743702836249,-1848.74,0.00053972,120]
[357086128,1743702836278,-1939.65,0.00053972,120]
[357086129,1743702836306,-500.0,0.00053972,120]
[357086130,1743702836334,-2090.69,0.00053972,120]
[357086131,1743702836581,-1838.99,0.00053972,120]
[357086132,1743702836614,-2110.49,0.00053972,120]
[357086133,1743702836646,-778.23,0.00053972,120]
[357086134,1743702836676,-749.23,0.00053972,120]
[357086135,1743702836706,-500.0,0.00053972,120]
[357086136,1743702836736,-574.96,0.00053972,120]
[357086137,1743702836766,-1992.38,0.00053972,120]
[357086138,1743702836795,-795.48,0.00053972,120]
[357086139,1743702836824,-1760.21,0.00053972,120]
[357086140,1743702836853,-2980.91,0.00053972,120]
[357086141,1743702836881,-1579.38,0.00053972,120]
[357086142,1743702836910,-1116.73,0.00053972,120]
[357086143,1743702836943,-1693.21,0.00053972,120]
[357086144,1743702836972,-1211.63,0.00053972,120]
[357086145,1743702837001,-1853.76,0.00053972,120]
[357086146,1743702837033,-1747.91,0.00053972,120]
[357086147,1743702837064,-1699.65,0.00053972,120]
[357086148,1743702837098,-490.61885329,0.00053972,120]
[357086149,1743702837127,-1666.14,0.00053972,120]
[357086150,1743702837156,-919.01,0.00053972,120]
[357086151,1743702837184,-1084.23,0.00053972,120]
[357086152,1743702837212,-1746.34,0.00053972,120]
[357086153,1743702837241,-2182.37,0.00053972,120]
[357086154,1743702837270,-1996.93,0.00053972,120]
[357086155,1743702837299,-616.61,0.00053972,120]
[357086156,1743702837328,-1435.37,0.00053972,120]
[357086157,1743702837357,-699.18,0.00053972,120]
[357086158,1743702837385,-500.0,0.00053972,120]
[357086159,1743702837414,-978.7,0.00053972,120]
[357086160,1743702837444,-1443.02,0.00053972,120]
[357086161,1743702837473,-926.73,0.00053972,120]
[357086162,1743702837502,-1089.89,0.00053972,120]
[357086163,1743702837532,-1222.53,0.00053972,120]
[357086164,1743702837560,-500.0,0.00053995,120]
[357086165,1743702837590,-50000.0,0.00054,54]
[357086166,1743702837618,-500.0,0.00054,55]
[357086167,1743702837645,-302.66,0.00054,120]
[357086168,1743702837673,-302.66,0.00054,120]
[357086169,1743702837702,-382440.45396074,0.00054,120]
[357086171,1743703049566,168.06,0.00013699,2]
[357086172,1743703274894,-167.8371,0.00019773,2]
[357086173,1743703290667,-391.92439095,0.00019773,2]
[357086174,1743703292753,-738.29920905,0.00019773,2]
[357086177,1743703630112,-174.11,0.00017281,2]
[357086178,1743703630135,-250.0,0.00019009,2]
[357086179,1743703630157,-250.0,0.00019009,2]
[357086180,1743703630181,-239.81807041,0.000198,2]
[357086181,1743703630205,-239.81807041,0.0001985,2]
[357086182,1743703630228,-1670.785518,0.00019872,2]
[357086183,1743703630250,-300.0,0.00019899,2]
[357086184,1743703630278,-300.0,0.00019899,2]
[357086185,1743703630299,-164.32991849,0.000199,2]
[357086186,1743703630320,-4462.7028,0.000199,2]
[357086187,1743703630341,-185.4365952,0.000199,2]
[357086188,1743703630363,-391.92439095,0.000199,2]
[357086189,1743703630382,-419.0,0.000199,2]
[357086190,1743703630404,-360.61522273,0.000199,2]
[357086191,1743703630425,-1044.00118206,0.000199,2]
[357086192,1743703636189,-268.25993243,0.00019799,2]
[357086193,1743703636210,-86.22241794,0.000199,2]
[357086194,1743703636231,-239.81807041,0.000199,2]
[357086195,1743703636254,-347.09467443,0.00019973,2]
[357086196,1743703638103,-27.39232749,0.00019973,2]
[357086197,1743703638124,-500.0,0.00019973,2]
[357086198,1743703638145,-502.49533835,0.00019973,2]
[357086199,1743703638166,-162.14699852,0.00019973,2]
[357086200,1743703638193,-188.26988739,0.00019973,2]
[357086213,1743703831422,-200.0,0.000197,7]
[357086214,1743703831432,-250.0,0.0001975,2]
[357086215,1743703831441,-500.0,0.000198,7]
[357086216,1743703831451,-250.0,0.00019869,2]
[357086217,1743703831460,-150.0,0.0001989,2]
[357086218,1743703831469,-700.0,0.000199,7]
[357086219,1743703831478,-324.55370043,0.000199,2]
[357086220,1743703831487,-211.28342497,0.00019973,2]
[357086221,1743703831502,-100.44668764,0.00019973,2]
[357086222,1743703831511,-403.21033145,0.00019973,2]
[357086223,1743703831520,-500.0,0.00019973,2]
[357086224,1743703831529,-344.82448454,0.00019973,2]
[357086225,1743703831538,-152.735,0.00019973,2]
[357086226,1743703831547,-300.0,0.00019989,2]
[357086227,1743703831556,-23628.78349637,0.0001999,2]
[357086228,1743703831567,-6099.9999999,0.0001999,2]
[357086229,1743703831586,-5880.0,0.0001999,2]
[357086230,1743703831598,-3550.000005,0.0001999,2]
[357086233,1743703831799,-1300.0,0.0001999,2]
[357086241,1743703831870,-251.92214903,0.0001999,2]
[357086242,1743703831888,-756.43989339,0.0001999,2]
[357086243,1743703831902,-1118.27102939,0.0001999,2]
[357086244,1743703831911,-186.65293237,0.0001999,2]
[357086245,1743703831920,-842.16033665,0.00019999,5]
[357086246,1743703831931,-424.458283,0.0002,2]
[357086258,1743703837322,-149.541717,0.0002,2]
[357086260,1743703837331,-43868.05828302,0.0002,2]
[357086262,1743703837343,-605.21999996,0.0002,2]
[357086263,1743703837355,-29286.22500023,0.0002,2]
[357086264,1743703837366,-55046.91344371,0.0002,2]
[357086265,1743703837377,-409.045,0.0002,2]
[357086266,1743703837392,-901.47827514,0.0002,2]
[357086267,1743703837483,-316.01150826,0.0002,2]
[357086268,1743703837495,-4232.84058231,0.0002,2]
[357086269,1743703837543,-825.96053552,0.0002,2]
[357086270,1743703837650,-418.425,0.0002,2]
[357086272,1743703837666,-699.9668291,0.0002,2]
[357086334,1743703839702,-3341.7404925,0.0002,2]
[357086336,1743703839714,-12252.1478167,0.0002,2]
[357086361,1743703839952,-600.00568145,0.0002,2]
[357086369,1743703840021,-337.73,0.0002,2]
[357086376,1743703840075,-373.96,0.0002,2]
[357086473,1743703843305,-841.0,0.0002,2]
[357086476,1743703843317,-2423.99537004,0.0002,2]
[357086478,1743703843333,-4412.2662146,0.0002,2]
[357086480,1743703843344,-707.91237164,0.0002,2]
[357086669,1743703845478,-1006.23121975,0.0002,2]
[357086672,1743703845489,-264.208,0.0002,2]
[357086698,1743703845741,-613.0,0.0002,2]
[357086700,1743703845751,-24.59686912,0.0002,2]
[357086705,1743703845793,-818.1,0.0002,2]
[357086794,1743703857652,-154.33291772,0.000199,2]
[357086795,1743703857675,-7.67400028,0.000199,2]
[357086796,1743703863149,-163.29613777,0.000199,2]
[357086797,1743703863178,-73.70694423,0.000199,2]
[357086798,1743703868491,-128.75065577,0.000199,2]
[357086799,1743703868517,-31.96934423,0.00019989,2]
[357086800,1743703902195,-156.24333332,0.000199,2]
[357086801,1743703912191,-250.25053774,0.000199,2]
[357086802,1743703912215,-41.69110751,0.000199,2]
[357086807,1743704115543,-166.85175229,0.00019845,2]
[357086809,1743704146378,-164.32991852,0.000198,2]
[357086810,1743704282039,-208.05835475,0.00019845,2]
[357086811,1743704402981,-175.14,0.00017231,2]
[357086812,1743704403006,-37.84324344,0.00018538,2]
[357086813,1743704403593,-212.15675656,0.00018538,2]
[357086814,1743704403616,-0.82648688,0.00018954,2]
[357086815,1743704449869,168.06,0.00013699,2]
[357086816,1743704523806,151.0,0.00035032,30]
[357086817,1743704524446,151.0,0.00035032,30]
[357086818,1743704525119,151.0,0.00035032,30]
[357086819,1743704767514,-297.17206569,0.00018735,2]
[357086821,1743704780527,-55.6681098,0.00018735,2]
[357086822,1743704780550,-159.83696741,0.00018954,2]
[357086823,1743704793265,-89.33654571,0.00018954,2]
[357086824,1743704793289,-118.72180904,0.00019027,2]
[357086826,1743704797703,-234.11836645,0.00019027,2]
[357086828,1743704799331,-352.84017549,0.00019268,2]
[357086829,1743704799353,-110.1405261,0.00019609,2]
[357086830,1743704812356,-276.77713981,0.00019399,2]
[357086831,1743704826116,-251.68573829,0.00019399,2]
[357086832,1743704826138,-242.69964939,0.00019609,2]
[357086833,1743704826159,-352.84017553,0.00019736,2]
[357086834,1743704826181,-215.50507721,0.00019799,2]
[357086835,1743704826203,-216.72785146,0.000198,2]
[357086836,1743704826226,-239.42989296,0.00019845,2]
[357086837,1743704826246,-500.0,0.0001989,2]
[357086838,1743704826269,-600.0,0.00019899,2]
[357086839,1743704826289,-208.05835475,0.00019899,2]
[357086840,1743704826310,-500.0,0.00019899,2]
[357086841,1743704826331,-490.99425834,0.00019899,2]
[357086842,1743704826353,-500.0,0.00019899,2]
[357086843,1743704826373,-500.0,0.00019899,2]
[357086844,1743704826394,-500.0,0.00019899,2]
[357086845,1743704826415,-276.77713981,0.00019899,2]
[357086846,1743704826439,-3903.83646835,0.000199,2]
[357086847,1743704828156,-589.0629,0.000199,2]
[357086848,1743704847824,-152.735,0.00019399,2]
[357086849,1743704850086,-243.6121586,0.00019399,2]
[357086850,1743704850108,-1148.03249632,0.00019899,2]
[357086852,1743704882870,1831.94,0.00015,2]
[357086853,1743704882901,1429681.28981702,0.00015,2]
[357086854,1743704882932,900682.6552393,0.00015,2]
[357086855,1743704882961,15127.95842296,0.00015,2]
[357086862,1743704939279,-152.735,0.00019399,2]
[357086863,1743704954692,-152.735,0.00019399,3]
[357086881,1743705031597,-297.17206569,0.00019299,2]
[357086883,1743705031607,-4197.95407431,0.00019399,3]
[357086884,1743705031618,-613.92894622,0.00019399,3]
[357086885,1743705031654,-1011.82814056,0.00019399,3]
[357086886,1743705031666,-520.44974902,0.00019399,3]
[357086887,1743705031679,-259.0766189,0.00019399,2]
[357086888,1743705031689,-250.0,0.00019576,2]
[357086889,1743705031699,-747.06823208,0.00019862,2]
[357086890,1743705031766,-252.93176792,0.00019862,2]
[357086891,1743705031775,-1770.57167327,0.0001989,2]
[357086892,1743705031785,-175.85888991,0.00019898,2]
[357086893,1743705031797,-124.14111009,0.00019898,2]
[357086894,1743705031806,-249.59999176,0.00019899,2]
[357086895,1743705031818,-312.09291192,0.00019899,2]
[357086896,1743705031827,-318.44892414,0.000199,2]
[357086897,1743705031838,-312.3198,0.000199,2]
[357086898,1743705031848,-1504.2733,0.000199,2]
[357086899,1743705031858,-2418.1908,0.000199,2]
[357086900,1743705031869,-3815.53882044,0.000199,2]
[357086901,1743705031882,-546.70831491,0.000199,2]
[357086902,1743705031893,-415.07956465,0.000199,2]
[357086903,1743705031903,-3527.0344,0.000199,2]
[357086904,1743705031912,-153.03810973,0.000199,2]
[357086905,1743705031922,-2867.31276655,0.000199,2]
[357086906,1743705031951,-872.32,0.000199,2]
[357086907,1743705031963,-252.2,0.000199,2]
[357087437,1743705037521,-5901.92413345,0.000199,2]
[357087439,1743705037530,-5610.7049,0.000199,2]
[357087441,1743705037539,-1245.1968,0.000199,2]
[357087442,1743705037548,-611.1075,0.000199,2]
[357087444,1743705037558,-171.53127833,0.000199,2]
[357087446,1743705037567,-210.82256411,0.000199,2]
[357087448,1743705037576,-100.43128178,0.000199,2]
[357087451,1743705037588,-517.71211357,0.000199,2]
[357087453,1743705037602,-17949.02410465,0.000199,2]
[357087454,1743705037612,-4120.7795889,0.000199,3]
[357087456,1743705037622,-640.2303279,0.000199,2]
[357087458,1743705037631,-161.39548801,0.000199,2]
[357087459,1743705037643,-3722.08677533,0.000199,2]
[357087460,1743705037652,-640.23032782,0.00019937,2]
[357087461,1743705037661,-156.72670397,0.00019973,2]
[357087462,1743705037672,-160.22031397,0.00019973,2]
[357087463,1743705037682,-500.0,0.00019973,2]
[357087464,1743705037691,-155.53934818,0.00019973,2]
[357087465,1743705037700,-238.34035873,0.00019973,2]
[357087466,1743705037708,-500.0,0.00019973,2]